fUST/lending_fUST_20250724
["ID","MTS","AMOUNT","RATE_DAILY","PERIOD"]
[374471938,1753313447068,-1297.21,0.00020821,2]
[374471939,1753313447078,-511.55,0.00020821,2]
[374471940,1753313447087,-1175.03,0.00020821,2]
[374471941,1753313447096,-803.23,0.00020821,2]
[374471942,1753313447106,-460.0,0.00020821,2]
[374471943,1753313447115,-460.0,0.00020821,2]
[374471944,1753313447128,-563.03834934,0.00020821,2]
[374471945,1753313447137,-460.0,0.00020821,2]
[374471946,1753313447147,-460.0,0.00020821,2]
[374471947,1753313447156,-849.09,0.00020821,2]
[374471948,1753313447167,-460.0,0.00020821,2]
[374471949,1753313447178,-240.52304691,0.00020821,2]
[374471950,1753313447188,-460.0,0.00020821,2]
[374471951,1753313447198,-460.0,0.00020821,2]
[374471952,1753313447207,-206.02,0.00020821,2]
[374471953,1753313447217,-460.0,0.00020821,2]
[374471954,1753313447227,-415.02,0.00020821,2]
[374471955,1753313447236,-460.0,0.00020821,2]
[374471956,1753313447248,-802.33,0.00020821,2]
[374471957,1753313447258,-460.0,0.00020821,2]
[374471958,1753313447268,-460.0,0.00020821,2]
[374471959,1753313447277,-460.0,0.00020821,2]
[374471960,1753313447287,-460.0,0.00020821,2]
[374471961,1753313447297,-460.0,0.00020821,2]
[374471962,1753313447306,-460.0,0.00020821,2]
[374471963,1753313447316,-460.0,0.00020821,2]
[374471964,1753313447325,-460.0,0.00020821,2]
[374471965,1753313447336,-500.0,0.00020862,2]
[374471966,1753313447345,-500.0,0.00020862,2]
[374471967,1753313447355,-160.0,0.00020896,2]
[374471968,1753313447364,-211.0,0.00020897,2]
[374471969,1753313447374,-250.12389181,0.000209,2]
[374471970,1753313447383,-1054.27403503,0.00020917,2]
[374471971,1753313447393,-500.0,0.00020973,2]
[374471972,1753313447402,-500.0,0.00020973,2]
[374471973,1753313447412,-500.0,0.00020973,2]
[374471974,1753313447421,-500.0,0.00020973,2]
[374471975,1753313447431,-500.0,0.00020973,2]
[374471976,1753313447440,-619.07791208,0.00020973,2]
[374471977,1753313447450,-500.0,0.00020973,2]
[374471978,1753313447459,-500.0,0.00020973,2]
[374471979,1753313447468,-500.0,0.00020973,2]
[374471980,1753313447477,-500.0,0.00020973,2]
[374471981,1753313447487,-500.0,0.00020973,2]
[374471982,1753313447496,-161.66149391,0.00020973,2]
[374471983,1753313447507,-500.0,0.00020973,2]
[374471984,1753313447517,-500.71124233,0.00020973,2]
[374471985,1753313447526,-504.74859818,0.00020973,2]
[374471986,1753313447536,-384.09491271,0.00020973,2]
[374471987,1753313447565,-115.90508729,0.00020973,2]
[374471988,1753313447575,-500.0,0.00020973,2]
[374471989,1753313447584,-370.46457657,0.00020973,2]
[374471990,1753313447703,-225.68804068,0.00019078,2]
[374471991,1753313447714,-129.53542343,0.00020973,2]
[374471992,1753313447723,-500.0,0.00020973,2]
[374471993,1753313447733,-500.0,0.00020973,2]
[374471994,1753313447742,-500.0,0.00020973,2]
[374471995,1753313447752,-502.478894,0.00020973,2]
[374471996,1753313447762,-500.0,0.00020973,2]
[374471997,1753313447772,-168.06222679,0.00020973,2]
[374471998,1753313447782,-500.0,0.00020973,2]
[374471999,1753313447791,-474.6411671,0.00020973,2]
[374472000,1753313447806,-25.3588329,0.00020973,2]
[374472001,1753313447816,-540.13657752,0.00020973,2]
[374472002,1753313447826,-500.0,0.00020973,2]
[374472003,1753313447838,-500.0,0.00020973,2]
[374472004,1753313447848,-270.26850122,0.00021,2]
[374472005,1753313447857,-679.97430302,0.00021,10]
[374472006,1753313447867,-25263.41684961,0.00021,2]
[374472007,1753313447876,-145153.22766754,0.00021,3]
[374472008,1753313447885,-150.0,0.00021093,2]
[374472009,1753313447894,-460.0,0.00021095,2]
[374472010,1753313447903,-460.0,0.00021095,2]
[374472011,1753313447912,-522.87,0.00021095,2]
[374472012,1753313447921,-2143.7,0.00021095,2]
[374472013,1753313447931,-2574.26,0.00021095,2]
[374472014,1753313447940,-460.0,0.00021095,2]
[374472015,1753313447949,-460.0,0.00021095,2]
[374472016,1753313447957,-1439.47,0.00021095,2]
[374472017,1753313447966,-460.0,0.00021095,2]
[374472018,1753313447976,-306.16,0.00021095,2]
[374472019,1753313447985,-460.0,0.00021095,2]
[374472020,1753313447995,-460.0,0.00021095,2]
[374472021,1753313448003,-1297.21,0.00021095,2]
[374472022,1753313448013,-511.55,0.00021095,2]
[374472023,1753313448022,-1175.03,0.00021095,2]
[374472024,1753313448031,-803.23,0.00021095,2]
[374472025,1753313448040,-460.0,0.00021095,2]
[374472026,1753313448050,-460.0,0.00021095,2]
[374472027,1753313448059,-460.0,0.00021095,2]
[374472028,1753313448068,-460.0,0.00021095,2]
[374472029,1753313448077,-849.09,0.00021095,2]
[374472030,1753313448087,-460.0,0.00021095,2]
[374472031,1753313448096,-460.0,0.00021095,2]
[374472032,1753313448106,-460.0,0.00021095,2]
[374472033,1753313448115,-460.0,0.00021095,2]
[374472034,1753313448124,-460.0,0.00021095,2]
[374472035,1753313448134,-802.33,0.00021095,2]
[374472036,1753313448144,-485.07599321,0.00021095,2]
[374472037,1753313448154,-460.0,0.00021095,2]
[374472038,1753313448163,-460.0,0.00021095,2]
[374472039,1753313448177,-460.0,0.00021095,2]
[374472040,1753313448187,-460.0,0.00021095,2]
[374472041,1753313448197,-460.0,0.00021095,2]
[374472042,1753313448206,-460.0,0.00021095,2]
[374472043,1753313448215,-460.0,0.00021369,2]
[374472044,1753313448225,-403.28,0.00021369,2]
[374472045,1753313448235,-522.87,0.00021369,2]
[374472046,1753313448244,-2143.7,0.00021369,2]
[374472047,1753313448254,-2574.26,0.00021369,2]
[374472048,1753313448265,-460.0,0.00021369,2]
[374472049,1753313448274,-460.0,0.00021369,2]
[374472050,1753313448284,-1439.47,0.00021369,2]
[374472051,1753313448294,-460.0,0.00021369,2]
[374472052,1753313448304,-460.0,0.00021369,2]
[374472053,1753313448313,-460.0,0.00021369,2]
[374472054,1753313448324,-1297.21,0.00021369,2]
[374472055,1753313448333,-511.55,0.00021369,2]
[374472056,1753313448343,-1175.03,0.00021369,2]
[374472057,1753313448353,-803.23,0.00021369,2]
[374472058,1753313448362,-243.02,0.00021369,2]
[374472059,1753313448371,-460.0,0.00021369,2]
[374472060,1753313448381,-460.0,0.00021369,2]
[374472061,1753313448391,-460.0,0.00021369,2]
[374472062,1753313448400,-849.09,0.00021369,2]
[374472063,1753313448411,-460.0,0.00021369,2]
[374472064,1753313448420,-460.0,0.00021369,2]
[374472065,1753313448430,-460.0,0.00021369,2]
[374472066,1753313448439,-460.0,0.00021369,2]
[374472067,1753313448449,-460.0,0.00021369,2]
[374472068,1753313448459,-802.33,0.00021369,2]
[374472069,1753313448468,-460.0,0.00021369,2]
[374472070,1753313448487,-460.0,0.00021369,2]
[374472071,1753313448498,-460.0,0.00021369,2]
[374472072,1753313448508,-551.56246789,0.00021369,2]
[374472073,1753313448519,-460.0,0.00021369,2]
[374472074,1753313448528,-500.0,0.00021409,2]
[374472075,1753313448539,-500.0,0.00021442,2]
[374472076,1753313448548,-260.0,0.00021444,2]
[374472077,1753313448557,-209.5,0.00021497,5]
[374472078,1753313448567,-10319.62612536,0.000215,2]
[374472079,1753313448577,-500.0,0.00021521,2]
[374472080,1753313448587,-1000.0,0.00021521,2]
[374472081,1753313448596,-597.99224489,0.00021521,2]
[374472082,1753313448606,-299.77258459,0.00021521,2]
[374472083,1753313448616,-500.0,0.00021521,2]
[374472084,1753313448626,-1000.0,0.00021521,2]
[374472085,1753313448636,-500.0,0.00021521,2]
[374472086,1753313448646,-506.13422881,0.00021521,2]
[374472087,1753313448656,-500.01884122,0.00021521,2]
[374472088,1753313448666,-1000.0,0.00021521,2]
[374472089,1753313448676,-500.0,0.00021521,2]
[374472090,1753313448686,-500.0,0.00021521,2]
[374472091,1753313448696,-500.0,0.00021521,2]
[374472092,1753313448706,-1000.0,0.00021521,2]
[374472093,1753313448716,-460.0,0.00021643,2]
[374472094,1753313448725,-522.87,0.00021643,2]
[374472095,1753313448737,-2143.7,0.00021643,2]
[374472096,1753313448746,-2574.26,0.00021643,2]
[374472097,1753313448756,-460.0,0.00021643,2]
[374472098,1753313448766,-460.0,0.00021643,2]
[374472099,1753313448776,-1439.47,0.00021643,2]
[374472100,1753313448786,-460.0,0.00021643,2]
[374472101,1753313448796,-460.0,0.00021643,2]
[374472102,1753313448806,-460.0,0.00021643,2]
[374472103,1753313448815,-1297.21,0.00021643,2]
[374472104,1753313448825,-511.55,0.00021643,2]
[374472105,1753313448835,-1175.03,0.00021643,2]
[374472106,1753313448844,-803.23,0.00021643,2]
[374472107,1753313448854,-460.0,0.00021643,2]
[374472108,1753313448864,-460.0,0.00021643,2]
[374472109,1753313448874,-290.21,0.00021643,2]
[374472110,1753313448884,-849.09,0.00021643,2]
[374472111,1753313448894,-215.14,0.00021643,2]
[374472112,1753313448903,-460.0,0.00021643,2]
[374472113,1753313448913,-460.0,0.00021643,2]
[374472114,1753313448923,-460.0,0.00021643,2]
[374472115,1753313448933,-460.0,0.00021643,2]
[374472116,1753313448943,-802.33,0.00021643,2]
[374472117,1753313448953,-460.0,0.00021643,2]
[374472118,1753313448962,-414.98265038,0.00021643,2]
[374472119,1753313448972,-460.0,0.00021643,2]
[374472120,1753313448982,-311.6,0.00021643,2]
[374472121,1753313448991,-34988.73681303,0.00021739,2]
[374472122,1753313449271,-460.0,0.00019178,2]
[374472123,1753313449282,-460.0,0.00019452,2]
[374472124,1753313449292,-460.0,0.00019726,2]
[374472125,1753313449301,-460.0,0.0002,2]
[374472126,1753313449311,-460.0,0.00020273,2]
[374472127,1753313449321,-77675.27766828,0.00021739,2]
[374472128,1753313449345,-460.0,0.00020547,2]
[374472129,1753313449354,-26964.08518,0.00021739,2]
[374472130,1753313449730,-0.40768195,0.00021739,2]
[374472134,1753313629578,-166.0,0.00018218,2]
[374472135,1753313629600,-156.47206113,0.00018719,2]
[374472136,1753313629622,-137.52793887,0.00018819,2]
[374472137,1753313953677,-261.8843504,0.00018125,2]
[374472138,1753313953700,-150.0,0.00018857,2]
[374472139,1753313953722,-524.1156496,0.00018885,2]
[374472142,1753314055681,227.983479,0.00013699,2]
[374472144,1753314086874,-1712.2695884,0.00018124,2]
[374472145,1753314086898,-127.7304116,0.00018503,2]
[374472148,1753314221040,-173.76622,0.00018124,2]
[374472149,1753314221063,-126.23378,0.00018458,2]
[374472153,1753314286887,-1380.0,0.00018976,2]
[374472156,1753314337121,-1200.0,0.00019075,2]
[374472157,1753314337142,-300.0,0.00019076,2]
[374472158,1753314337162,-211.0,0.00019076,2]
[374472159,1753314337182,-146.81724144,0.00019076,2]
[374472162,1753314433081,-155.79189862,0.00018105,2]
[374472163,1753314433102,-481.26375489,0.00019076,2]
[374472164,1753314446082,-571.91900367,0.00019076,2]
[374472165,1753314446105,-500.0,0.00019077,2]
[374472166,1753314446129,-192.20753365,0.00019077,2]
[374472167,1753314449094,-307.79246635,0.00019077,2]
[374472168,1753314449117,-500.0,0.00019077,2]
[374472169,1753314449139,-92.15492277,0.00019077,2]
[374472237,1753314632734,-4784.2846428,0.00018082,2]
[374472239,1753314632744,-83.49126847,0.00018375,2]
[374472241,1753314632756,-177.75614377,0.00018375,2]
[374472243,1753314632765,-150.0,0.00018475,2]
[374472245,1753314632775,-548.71395988,0.000189,2]
[374472247,1753314632787,-809.77192445,0.000189,2]
[374472249,1753314632798,-98.25462861,0.000189,2]
[374472251,1753314632807,-153.0,0.00018917,2]
[374472253,1753314632817,-676.1283998,0.00019068,2]
[374472255,1753314632826,-1200.0,0.00019076,2]
[374472271,1753314632958,-300.0,0.00019076,2]
[374472273,1753314632968,-272.43580011,0.00019077,2]
[374472351,1753314638901,-135.40927712,0.00019077,2]
[374472352,1753314638911,-500.0,0.00019077,2]
[374472353,1753314638920,-500.0,0.00019077,2]
[374472354,1753314638930,-500.0,0.00019077,2]
[374472355,1753314638939,-351.32381958,0.00019077,2]
[374472356,1753314638970,-148.67618042,0.00019077,2]
[374472357,1753314638983,-529.43496306,0.00019077,2]
[374472358,1753314638994,-500.0,0.00019077,2]
[374472359,1753314639006,-500.0,0.00019077,2]
[374472360,1753314639019,-622.14986147,0.00019077,2]
[374472361,1753314639032,-500.0,0.00019077,2]
[374472362,1753314639045,-500.0,0.00019077,2]
[374472363,1753314639058,-500.0,0.00019077,2]
[374472364,1753314639070,-500.0,0.00019077,2]
[374472365,1753314639083,-397.59519644,0.00019077,2]
[374472366,1753314639098,-500.0,0.00019077,2]
[374472367,1753314639111,-500.0,0.00019077,2]
[374472368,1753314639123,-500.0,0.00019077,2]
[374472369,1753314639135,-277.78364519,0.00019077,2]
[374472370,1753314639148,-500.0,0.00019077,2]
[374472371,1753314639159,-500.0,0.00019077,2]
[374472372,1753314639172,-500.0,0.00019077,2]
[374472373,1753314639185,-500.0,0.00019077,2]
[374472374,1753314639197,-500.0,0.00019077,2]
[374472375,1753314639209,-500.0,0.00019077,2]
[374472376,1753314639219,-500.0,0.00019077,2]
[374472377,1753314639231,-584.87647813,0.00019077,2]
[374472378,1753314639242,-500.0,0.00019077,2]
[374472379,1753314639256,-500.0,0.00019077,2]
[374472380,1753314639268,-500.0,0.00019077,2]
[374472382,1753314639280,-500.0,0.00019077,2]
[374472383,1753314639293,-10794.23626693,0.00019078,2]
[374472384,1753314639306,-53255.43248922,0.00019078,2]
[374472385,1753314639319,-5317.46075202,0.00019078,2]
[374472386,1753314639333,-732.59,0.00019168,3]
[374472387,1753314639345,-366.3,0.00019168,3]
[374472388,1753314639356,-183.15,0.00019168,3]
[374472389,1753314639366,-549.45,0.00019168,3]
[374472390,1753314639376,-560.3256651,0.00019173,2]
[374472391,1753314639388,-512.65705704,0.00019173,2]
[374472392,1753314639400,-500.0,0.00019173,2]
[374472393,1753314639415,-500.0,0.00019173,2]
[374472394,1753314639427,-500.0,0.00019173,2]
[374472395,1753314639437,-291.33809974,0.00019173,2]
[374472396,1753314639449,-500.0,0.00019173,2]
[374472398,1753314639460,-620.27002591,0.00019173,2]
[374472399,1753314639472,-500.0,0.00019173,2]
[374472400,1753314639483,-500.0,0.00019173,2]
[374472401,1753314639495,-500.67621022,0.00019173,2]
[374472402,1753314639507,-442.7335692,0.00019173,2]
[374472403,1753314639517,-500.0,0.00019173,2]
[374472404,1753314639530,-500.0,0.00019173,2]
[374472405,1753314639542,-162.92776886,0.00019173,2]
[374472406,1753314639553,-500.0,0.00019173,2]
[374472407,1753314639563,-289.73174549,0.00019177,2]
[374472408,1753314639576,-500.0,0.00019177,2]
[374472409,1753314639587,-439.32559852,0.00019177,2]
[374472410,1753314639599,-460.0,0.00019178,2]
[374472411,1753314639609,-471.7923692,0.00019178,2]
[374472412,1753314639620,-460.0,0.00019178,2]
[374472413,1753314639631,-460.0,0.00019178,2]
[374472414,1753314639643,-346.08936957,0.00019178,2]
[374472415,1753314639654,-460.0,0.00019178,2]
[374472416,1753314639665,-517.92026842,0.00019178,2]
[374472417,1753314639676,-460.0,0.00019178,2]
[374472418,1753314639687,-460.0,0.00019178,2]
[374472419,1753314639698,-460.0,0.00019178,2]
[374472420,1753314639709,-460.0,0.00019178,2]
[374472421,1753314639720,-174.02728654,0.00019178,2]
[374472422,1753314639731,-460.0,0.00019178,2]
[374472423,1753314639742,-460.0,0.00019178,2]
[374472424,1753314639753,-460.0,0.00019178,2]
[374472425,1753314639764,-460.0,0.00019178,2]
[374472426,1753314639775,-460.0,0.00019178,2]
[374472427,1753314639786,-460.0,0.00019178,2]
[374472428,1753314639798,-460.0,0.00019178,2]
[374472429,1753314639809,-460.0,0.00019178,2]
[374472430,1753314639820,-460.0,0.00019178,2]
[374472431,1753314639831,-460.0,0.00019178,2]
[374472432,1753314639843,-472.692786,0.00019178,2]
[374472433,1753314639853,-460.0,0.00019178,2]
[374472434,1753314639865,-460.0,0.00019178,2]
[374472435,1753314639876,-290.78393118,0.00019178,2]
[374472436,1753314639887,-460.0,0.00019178,2]
[374472437,1753314639898,-460.0,0.00019178,2]
[374472438,1753314639909,-460.0,0.00019178,2]
[374472439,1753314639921,-460.0,0.00019178,2]
[374472440,1753314639932,-460.0,0.00019178,2]
[374472441,1753314639943,-460.0,0.00019178,2]
[374472442,1753314639954,-460.0,0.00019178,2]
[374472443,1753314639965,-460.0,0.00019178,2]
[374472444,1753314639976,-460.0,0.00019178,2]
[374472445,1753314639987,-460.0,0.00019178,2]
[374472446,1753314639998,-530.24978864,0.00019178,2]
[374472447,1753314640009,-460.0,0.00019178,2]
[374472448,1753314640020,-460.36961902,0.00019178,2]
[374472449,1753314640032,-460.0,0.00019178,2]
[374472450,1753314640043,-460.0,0.00019178,2]
[374472451,1753314640054,-460.0,0.00019178,2]
[374472452,1753314640065,-460.0,0.00019178,2]
[374472453,1753314640076,-460.0,0.00019178,2]
[374472454,1753314640088,-460.0,0.00019178,2]
[374472455,1753314640099,-460.0,0.00019178,2]
[374472456,1753314640110,-460.0,0.00019178,2]
[374472457,1753314640121,-460.0,0.00019178,2]
[374472458,1753314640133,-414.97501631,0.00019178,2]
[374472459,1753314640144,-460.0,0.00019178,2]
[374472460,1753314640156,-460.0,0.00019178,2]
[374472463,1753314640167,-460.0,0.00019178,2]
[374472465,1753314640179,-460.0,0.00019178,2]
[374472469,1753314640190,-460.0,0.00019178,2]
[374472472,1753314640202,-447.40600687,0.00019178,2]
[374472474,1753314640211,-460.0,0.00019178,2]
[374472476,1753314640220,-460.0,0.00019178,2]
[374472493,1753314640393,-460.0,0.00019178,2]
[374472495,1753314640409,-460.0,0.00019178,2]
[374472498,1753314640419,-460.0,0.00019178,2]
[374472501,1753314640429,-460.0,0.00019178,2]
[374472503,1753314640438,-460.0,0.00019178,2]
[374472506,1753314640448,-460.0,0.00019178,2]
[374472509,1753314640457,-460.0,0.00019178,2]
[374472512,1753314640466,-460.0,0.00019178,2]
[374472515,1753314640475,-460.0,0.00019178,2]
[374472518,1753314640484,-460.0,0.00019178,2]
[374472521,1753314640495,-405.44545594,0.00019178,2]
[374472524,1753314640506,-460.0,0.00019178,2]
[374472527,1753314640516,-460.0,0.00019178,2]
[374472530,1753314640525,-460.0,0.00019178,2]
[374472533,1753314640535,-330.17594042,0.00019178,2]
[374472535,1753314640545,-330.61426934,0.00019178,2]
[374472538,1753314640555,-387.47426155,0.00019178,2]
[374472541,1753314640564,-460.0,0.00019178,2]
[374472543,1753314640573,-460.0,0.00019178,2]
[374472547,1753314640584,-460.0,0.00019178,2]
[374472550,1753314640594,-460.0,0.00019178,2]
[374472553,1753314640603,-460.0,0.00019178,2]
[374472556,1753314640614,-460.0,0.00019178,2]
[374472559,1753314640623,-460.0,0.00019178,2]
[374472562,1753314640633,-1129.88,0.00019178,2]
[374472565,1753314640642,-460.0,0.00019178,2]
[374472567,1753314640652,-460.0,0.00019178,2]
[374472570,1753314640661,-460.0,0.00019178,2]
[374472572,1753314640672,-460.0,0.00019178,2]
[374472575,1753314640682,-460.0,0.00019178,2]
[374472577,1753314640691,-460.0,0.00019178,2]
[374472580,1753314640702,-548.40577261,0.00019178,2]
[374472582,1753314640711,-460.0,0.00019178,2]
[374472585,1753314640720,-460.0,0.00019178,2]
[374472587,1753314640730,-460.0,0.00019178,2]
[374472590,1753314640739,-460.0,0.00019178,2]
[374472593,1753314640748,-460.0,0.00019178,2]
[374472595,1753314640758,-460.0,0.00019178,2]
[374472598,1753314640769,-460.0,0.00019178,2]
[374472600,1753314640778,-460.0,0.00019178,2]
[374472603,1753314640787,-460.0,0.00019178,2]
[374472605,1753314640796,-460.0,0.00019178,2]
[374472608,1753314640806,-460.0,0.00019178,2]
[374472610,1753314640816,-500.0,0.00019178,2]
[374472613,1753314640826,-462.19033956,0.00019178,2]
[374472615,1753314640835,-460.0,0.00019178,2]
[374472617,1753314640844,-460.0,0.00019178,2]
[374472620,1753314640854,-460.0,0.00019178,2]
[374472622,1753314640863,-460.0,0.00019178,2]
[374472623,1753314640872,-460.0,0.00019178,2]
[374472625,1753314640881,-460.0,0.00019178,2]
[374472627,1753314640891,-460.0,0.00019178,2]
[374472629,1753314640901,-460.0,0.00019178,2]
[374472631,1753314640910,-460.0,0.00019178,2]
[374472633,1753314640919,-460.0,0.00019178,2]
[374472635,1753314640929,-460.0,0.00019178,2]
[374472637,1753314640939,-404.08613684,0.00019178,2]
[374472639,1753314640948,-460.0,0.00019178,2]
[374472640,1753314640958,-460.0,0.00019178,2]
[374472642,1753314640967,-460.0,0.00019178,2]
[374472644,1753314640977,-460.0,0.00019178,2]
[374472646,1753314640987,-460.0,0.00019178,2]
[374472648,1753314640997,-462.94100938,0.00019178,2]
[374472650,1753314641006,-460.0,0.00019178,2]
[374472652,1753314641015,-460.0,0.00019178,2]
[374472654,1753314641024,-503.83,0.00019178,2]
[374472656,1753314641034,-460.0,0.00019178,2]
[374472658,1753314641043,-460.0,0.00019178,2]
[374472660,1753314641052,-462.94500452,0.00019178,2]
[374472662,1753314641061,-460.0,0.00019178,2]
[374472663,1753314641072,-460.0,0.00019178,2]
[374472665,1753314641081,-460.0,0.00019178,2]
[374472667,1753314641091,-460.0,0.00019178,2]
[374472669,1753314641100,-947.65,0.00019178,2]
[374472671,1753314641110,-460.0,0.00019178,2]
[374472673,1753314641119,-460.0,0.00019178,2]
[374472675,1753314641128,-460.0,0.00019178,2]
[374472677,1753314641138,-460.0,0.00019178,2]
[374472679,1753314641149,-500.0,0.00019178,2]
[374472681,1753314641158,-339.79691506,0.00019178,2]
[374472683,1753314641167,-460.0,0.00019178,2]
[374472685,1753314641177,-460.0,0.00019178,2]
[374472687,1753314641186,-460.0,0.00019178,2]
[374472688,1753314641196,-460.0,0.00019178,2]
[374472690,1753314641206,-460.0,0.00019178,2]
[374472692,1753314641216,-460.0,0.00019178,2]
[374472694,1753314641225,-460.0,0.00019178,2]
[374472695,1753314641236,-460.0,0.00019178,2]
[374472697,1753314641245,-460.0,0.00019178,2]
[374472699,1753314641255,-460.0,0.00019178,2]
[374472701,1753314641264,-460.0,0.00019178,2]
[374472702,1753314641273,-460.0,0.00019178,2]
[374472703,1753314641282,-460.0,0.00019178,2]
[374472704,1753314641292,-460.0,0.00019178,2]
[374472705,1753314641302,-460.0,0.00019178,2]
[374472706,1753314641312,-460.0,0.00019178,2]
[374472707,1753314641322,-310.43988614,0.00019178,2]
[374472708,1753314641332,-460.0,0.00019178,2]
[374472710,1753314641341,-460.0,0.00019178,2]
[374472711,1753314641351,-460.0,0.00019178,2]
[374472712,1753314641360,-460.0,0.00019178,2]
[374472713,1753314641372,-475.02,0.00019178,2]
[374472714,1753314641382,-460.0,0.00019178,2]
[374472715,1753314641391,-460.0,0.00019178,2]
[374472716,1753314641401,-460.0,0.00019178,2]
[374472717,1753314641411,-460.0,0.00019178,2]
[374472718,1753314641421,-460.0,0.00019178,2]
[374472719,1753314641430,-460.0,0.00019178,2]
[374472720,1753314641440,-460.0,0.00019178,2]
[374472721,1753314641450,-460.0,0.00019178,2]
[374472722,1753314641459,-548.74,0.00019178,2]
[374472723,1753314641470,-460.0,0.00019178,2]
[374472724,1753314641479,-460.0,0.00019178,2]
[374472725,1753314641488,-460.0,0.00019178,2]
[374472726,1753314641502,-313.47,0.00019178,2]
[374472727,1753314641512,-460.0,0.00019178,2]
[374472728,1753314641521,-460.0,0.00019178,2]
[374472729,1753314641532,-460.0,0.00019178,2]
[374472730,1753314641543,-460.0,0.00019178,2]
[374472731,1753314641552,-460.0,0.00019178,2]
[374472732,1753314641563,-460.0,0.00019178,2]
[374472733,1753314641574,-291.26490317,0.00019178,2]
[374472734,1753314641583,-460.0,0.00019178,2]
[374472735,1753314641593,-460.0,0.00019178,2]
[374472736,1753314641602,-460.0,0.00019178,2]
[374472737,1753314641612,-460.0,0.00019178,2]
[374472738,1753314641622,-460.0,0.00019178,2]
[374472739,1753314641632,-460.0,0.00019178,2]
[374472740,1753314641642,-460.0,0.00019178,2]
[374472741,1753314641652,-460.0,0.00019178,2]
[374472742,1753314641663,-460.0,0.00019178,2]
[374472743,1753314641672,-460.0,0.00019178,2]
[374472744,1753314641681,-460.0,0.00019178,2]
[374472745,1753314641691,-460.0,0.00019178,2]
[374472746,1753314641701,-4973.74,0.00019178,2]
[374472747,1753314641710,-962.86,0.00019178,2]
[374472748,1753314641720,-460.0,0.00019178,2]
[374472749,1753314641729,-460.0,0.00019178,2]
[374472750,1753314641739,-1293.95,0.00019178,2]
[374472751,1753314641749,-460.0,0.00019178,2]
[374472752,1753314641760,-460.0,0.00019178,2]
[374472753,1753314641769,-460.0,0.00019178,2]
[374472754,1753314641779,-460.0,0.00019178,2]
[374472755,1753314641791,-460.0,0.00019178,2]
[374472756,1753314641801,-460.0,0.00019178,2]
[374472757,1753314641811,-460.0,0.00019178,2]
[374472758,1753314641821,-460.0,0.00019178,2]
[374472759,1753314641830,-460.0,0.00019178,2]
[374472760,1753314641839,-460.0,0.00019178,2]
[374472761,1753314641849,-460.0,0.00019178,2]
[374472762,1753314641859,-577.14042864,0.00019178,2]
[374472763,1753314641870,-460.0,0.00019178,2]
[374472764,1753314641880,-460.0,0.00019178,2]
[374472765,1753314641890,-460.0,0.00019178,2]
[374472766,1753314641900,-460.0,0.00019178,2]
[374472767,1753314641911,-460.0,0.00019178,2]
[374472768,1753314641920,-205.3792598,0.00019178,2]